bitfinex/quotes_ETHUSD_20251120
["timestamp","ask_amount","ask_price","bid_price","bid_amount"]
[1763631445534,5.1116,3016.7,3016.6,0.9607]
[1763631446119,4.9996,3016.7,3016.6,0.4926]
[1763631446316,5.1116,3016.7,3016.6,0.4926]
[1763631447153,5.1116,3016.7,3016.5,0.001]
[1763631447154,9.36532624,3016.7,3016.5,0.001]
[1763631447456,0.6337,3016.6,3016.5,0.001]
[1763631447749,5.1116,3016.7,3016.5,0.001]
[1763631448449,5.5813,3016.7,3016.5,0.001]
[1763631448952,0.4768,3016.6,3016.5,0.001]
[1763631449365,4.26149038,3016.6,3016.5,0.001]
[1763631449654,4.26149038,3016.6,3016.2,0.001]
[1763631449655,0.405504,3016.4,3016.2,0.001]
[1763631449841,5.91681513,3016.3,3016.2,0.001]
[1763631450030,6.92941697,3016.3,3016.2,0.001]
[1763631450232,6.2231638,3016.3,3016.2,0.001]
[1763631451255,9.53848389,3016.3,3016.2,0.001]
[1763631454653,10.44524752,3016.3,3016.2,0.001]
[1763631456255,10.57721636,3016.3,3016.2,0.001]
[1763631456555,11.2821235,3016.3,3016.2,0.001]
[1763631457059,1.31249664,3016.2,3016.1,0.001]
[1763631457268,3.26702344,3016.2,3016.1,0.001]
[1763631457623,5.98954631,3016.2,3016.1,0.001]
[1763631460122,6.01031956,3016.2,3016.1,0.001]
[1763631460324,6.12231956,3016.2,3016.1,0.001]
[1763631460938,6.82654384,3016.2,3016.1,0.001]
[1763631461360,6.82654384,3016.2,3016.0,0.001]
[1763631461520,2.08564794,3016.1,3016.0,0.001]
[1763631461942,6.30818051,3016.1,3016.0,0.001]
[1763631462348,1.31249664,3016.0,3015.8,0.001]
[1763631462524,0.405504,3015.6,3013.9,0.6136]
[1763631462728,6.63720777,3015.5,3014.1,0.4566]
[1763631462928,8.14095238,3015.5,3014.1,0.4566]
[1763631463164,8.59755238,3015.5,3014.1,0.4566]
[1763631463332,7.89402743,3015.5,3013.9,0.6136]
[1763631463773,4.75531113,3014.6,3013.9,0.6136]
[1763631463925,0.112,3014.5,3013.9,0.6136]
[1763631464125,3.31740976,3014.4,3013.9,0.6136]
[1763631464839,0.4941,3014.3,3013.9,0.157]
[1763631465271,3.31740976,3014.4,3013.9,0.157]
[1763631465442,3.31740976,3014.4,3013.9,0.6136]
[1763631465946,3.31740976,3014.4,3014.0,0.4566]
[1763631466461,6.63481952,3014.4,3013.9,0.4566]
[1763631467068,6.63481952,3014.4,3013.8,0.157]
[1763631467232,7.12891952,3014.4,3013.8,0.157]
[1763631467740,0.4584,3013.9,3013.6,0.157]
[1763631467938,0.112,3013.8,3013.6,0.157]
[1763631468564,3.43007644,3013.8,3013.7,0.4501]
[1763631469448,3.88847644,3013.8,3013.1,0.4566]
[1763631469654,3.88847644,3013.8,3013.0,1.06739264]
[1763631469655,5.24941113,3013.7,3013.0,0.1604]
[1763631469849,5.24941113,3013.7,3013.0,0.617]
[1763631470565,7.13068082,3013.6,3012.8,0.6136]
[1763631471068,1.08969264,3013.5,3012.7,0.4566]
[1763631471373,0.517504,3013.4,3012.8,0.4566]
[1763631472064,0.517504,3013.4,3012.5,0.4566]
[1763631472065,5.76691513,3013.4,3012.5,0.4566]
[1763631472268,0.90699264,3013.4,3013.3,0.6105]
[1763631472469,0.1827,3014.3,3013.3,0.6105]
[1763631472470,0.112,3013.8,3013.3,0.6105]
[1763631472704,0.112,3013.8,3013.4,2.83696272]
[1763631472998,0.112,3013.8,3013.7,0.4501]
[1763631473310,3.31752021,3014.3,3013.7,1.26637008]
[1763631473311,0.112,3014.3,3013.7,1.26637008]
[1763631473486,0.112,3014.3,3014.2,0.6336]
[1763631474398,0.112,3014.3,3014.2,1.0902]
[1763631475302,3.31685959,3014.9,3014.2,1.0902]
[1763631475487,0.112,3014.8,3014.3,0.4566]
[1763631475803,0.1827,3015.4,3014.3,0.4566]
[1763631476121,3.31619963,3015.5,3014.9,0.4501]
[1763631476283,0.112,3015.4,3014.9,0.4501]
[1763631476474,3.42833363,3015.4,3014.9,0.9067]
[1763631478403,3.42833363,3015.4,3014.9,0.4501]
[1763631478923,6.74666726,3015.4,3014.9,0.4501]
[1763631479200,7.24076726,3015.4,3014.9,0.4501]
[1763631479502,3.92443363,3015.4,3014.9,0.4501]
[1763631479701,3.43033363,3015.4,3014.9,0.9067]
[1763631480076,0.4576,3015.0,3014.2,0.1835]
[1763631480297,0.112,3014.9,3014.2,0.1835]
[1763631480506,3.31696961,3014.8,3014.2,0.1835]
[1763631480732,6.63393922,3014.8,3014.2,0.1835]
[1763631480952,0.4941,3014.7,3013.9,1.09129264]
[1763631481248,0.405504,3014.6,3013.5,3.31832971]
[1763631481426,0.112,3014.5,3013.4,7.09457627]
[1763631481731,0.6061,3014.5,3013.4,7.09457627]
[1763631481940,0.6061,3014.5,3013.5,1.36359264]
[1763631482143,0.6061,3014.5,3013.5,0.4566]
[1763631482303,0.6061,3014.5,3013.5,1.36359264]
[1763631482731,6.63481952,3014.4,3013.5,4.68189741]
[1763631482940,6.63481952,3014.4,3013.4,0.001]
[1763631483149,0.4941,3014.3,3013.4,0.001]
[1763631483448,0.4941,3014.3,3013.4,3.31950277]
[1763631483978,0.4941,3014.3,3013.4,0.001]
[1763631484248,0.4941,3014.3,3013.4,0.90799264]
[1763631484606,6.63525976,3014.2,3013.4,0.001]
[1763631484800,0.112,3014.1,3013.4,0.001]
[1763631485022,0.4941,3014.1,3013.4,0.001]
[1763631485206,0.112,3014.0,3013.5,0.4566]
[1763631485408,0.112,3014.0,3013.4,0.001]
[1763631486124,0.1827,3013.9,3013.4,0.001]
[1763631486336,0.4584,3013.5,3013.4,0.001]
[1763631486651,0.112,3013.5,3013.4,0.001]
[1763631487414,0.112,3013.5,3013.4,0.4511]
[1763631487618,0.4941,3014.2,3013.4,0.9077]
[1763631487804,0.112,3014.1,3013.7,0.4501]
[1763631488010,0.112,3014.0,3013.7,0.4501]
[1763631488540,0.405504,3014.4,3013.9,0.491]
[1763631488743,6.63415928,3014.7,3013.9,0.491]
[1763631488956,0.4534,3014.8,3014.0,0.4765]
[1763631489109,0.112,3014.7,3014.0,0.4765]
[1763631489458,3.49958658,3014.9,3014.0,0.4765]
[1763631489665,3.31833692,3015.4,3014.8,0.491]
[1763631490141,0.002,3015.4,3014.8,0.491]
[1763631490437,0.112,3015.3,3014.8,0.491]
[1763631490808,3.42842947,3015.3,3014.9,0.4765]
[1763631491011,0.112,3015.3,3014.9,0.4765]
[1763631491334,0.4997,3015.0,3014.1,0.4765]
[1763631491564,0.4997,3015.0,3014.0,7.5426927]
[1763631491565,0.5453,3014.9,3014.0,4.22484267]
[1763631491862,0.5453,3014.9,3014.1,0.4765]
[1763631492269,0.4534,3014.8,3013.9,0.90699264]
[1763631492972,3.31707964,3014.7,3013.9,4.70137463]
[1763631493181,6.63415928,3014.7,3013.9,0.4765]
[1763631493379,3.77047964,3014.7,3013.9,3.79441938]
[1763631493737,7.08755928,3014.7,3013.9,3.79441938]
[1763631493935,3.77047964,3014.7,3013.9,3.79441938]
[1763631494132,7.08755928,3014.7,3013.9,3.79441938]
[1763631494675,3.31707964,3014.7,3013.9,3.79441938]
[1763631494880,3.31699035,3014.8,3014.0,0.4765]
[1763631495464,3.77039035,3014.8,3014.0,0.4765]
[1763631496065,7.0873807,3014.8,3014.0,0.4765]
[1763631497540,3.77039035,3014.8,3014.0,3.79429327]
[1763631497872,3.42891222,3014.9,3014.0,3.79429327]
[1763631498167,0.112,3014.8,3014.1,0.4765]
[1763631498376,3.31883303,3015.0,3014.1,0.4765]
[1763631498577,0.112,3014.9,3014.1,0.4765]
[1763631498948,0.002,3015.0,3014.8,0.491]
[1763631499158,0.002,3015.0,3014.9,0.491]
[1763631499342,0.114,3015.0,3014.9,0.491]
[1763631501849,0.6137,3015.0,3014.5,3.31725817]
[1763631502048,0.6137,3015.0,3014.5,3.79375817]
[1763631502675,0.114,3015.0,3014.6,0.4765]
[1763631502878,3.88416486,3015.0,3014.3,3.31750164]
[1763631503078,6.74752972,3015.0,3014.2,3.31755729]
[1763631503390,3.43076486,3015.0,3014.2,3.79405729]
[1763631503558,0.114,3015.0,3014.9,0.491]
[1763631503945,3.93044958,3015.0,3014.2,6.63518717]
[1763631504174,3.92964958,3015.0,3014.3,0.4765]
[1763631505446,3.92964958,3015.0,3014.3,3.793961]
[1763631505980,3.92967676,3015.0,3014.3,3.793961]
[1763631507280,3.92967676,3015.0,3014.4,0.4765]
[1763631507281,3.92967507,3015.0,3014.4,0.4765]
[1763631507646,3.92967507,3015.0,3014.4,3.79388668]
[1763631508483,0.6129,3015.0,3014.4,3.79388668]
[1763631508780,3.9296505,3015.0,3014.4,3.79388668]
[1763631509178,0.6129,3015.0,3014.4,3.79388668]
[1763631509350,3.9296857,3015.0,3014.4,3.79388668]
[1763631510075,0.6129,3015.0,3014.4,3.79388668]
[1763631510308,3.92965497,3015.0,3014.4,0.4765]
[1763631510483,3.92965497,3015.0,3014.4,3.79390851]
[1763631511181,3.92965497,3015.0,3014.4,0.4765]
[1763631511481,3.92967259,3015.0,3014.4,3.79380947]
[1763631512144,3.92964993,3015.0,3014.4,3.79380947]
[1763631513187,0.6129,3015.0,3014.4,3.79380947]
[1763631513374,3.92967444,3015.0,3014.5,0.4967]
[1763631513950,3.92967444,3015.0,3014.6,3.78879999]
[1763631514151,0.0012,3015.0,3014.9,0.4958]
[1763631514352,0.1132,3015.0,3014.9,0.4958]
[1763631514685,0.0012,3015.0,3014.9,0.4958]
[1763631514897,0.0012,3015.0,3014.9,0.9925]
[1763631516679,0.0012,3015.0,3014.9,0.4958]
[1763631517960,0.4866,3015.0,3014.7,3.78879999]
[1763631518301,0.0012,3015.0,3014.7,7.10585114]
[1763631518460,0.0012,3015.0,3014.9,0.4738]
[1763631519894,0.0012,3015.0,3014.9,0.947]
[1763631521166,0.0012,3015.0,3014.9,4.26385959]
[1763631521372,0.0012,3015.0,3014.9,0.947]
[1763631521689,0.0012,3015.0,3014.9,4.26385959]
[1763631522889,0.0012,3015.0,3014.9,9.02210358]
[1763631524993,0.0012,3015.0,3014.9,12.81090357]
[1763631528269,0.0004,3015.0,3014.9,12.81090357]
[1763631528498,0.0004,3015.0,3014.9,3.79065959]
[1763631534580,0.9553,3015.0,3014.8,3.78879999]
[1763631535000,0.2472,3014.9,3014.8,3.78879999]
[1763631536392,0.0004,3015.0,3014.8,3.78879999]
[1763631537414,0.0004,3015.0,3014.8,7.10573403]
[1763631537621,0.0004,3015.0,3014.8,3.31693404]
[1763631538518,0.0004,3015.0,3014.9,0.947]
[1763631539016,0.0004,3015.0,3014.9,0.4738]
[1763631539618,0.0004,3015.0,3014.9,0.947]
[1763631540108,0.0004,3015.0,3014.9,0.4738]
[1763631540338,0.0004,3015.0,3014.9,3.79065959]
[1763631540509,0.002,3015.4,3014.9,3.79065959]
[1763631540510,0.002,3015.4,3015.0,0.90699264]
[1763631540715,0.002,3015.4,3015.3,0.6308]
[1763631540912,0.002,3015.4,3015.3,1.13579263]
[1763631541089,0.002,3015.4,3015.3,6.30478526]
[1763631542092,0.002,3015.4,3015.3,5.79979263]
[1763631542327,0.002,3015.4,3015.3,9.11621222]
[1763631545031,0.002,3015.4,3015.3,8.64301222]
[1763631545394,0.4706,3015.4,3015.3,4.69579263]
[1763631545593,0.9569,3015.4,3014.6,0.4742]
[1763631545826,0.6487,3015.3,3014.6,0.001]
[1763631546208,0.4863,3015.2,3014.6,0.001]
[1763631546596,0.4863,3015.2,3014.6,0.90799264]
[1763631546999,0.112,3015.3,3014.6,1.38119264]
[1763631547200,0.5983,3015.3,3014.6,1.38119264]
[1763631547401,0.5983,3015.3,3014.6,0.90799264]
[1763631548223,0.468,3014.7,3014.6,0.90799264]
[1763631548400,3.9148107,3015.3,3014.7,3.31707964]
[1763631548606,0.4911,3015.2,3014.7,3.31707964]
[1763631549006,0.002,3015.4,3014.7,7.09865928]
[1763631549007,0.6051,3015.4,3014.7,7.09865928]
[1763631549596,0.4931,3015.4,3014.7,7.09865928]
[1763631549821,0.6051,3015.4,3014.7,7.60365191]
[1763631550637,0.4931,3015.4,3014.7,7.60365191]
[1763631550836,0.002,3015.4,3014.7,7.13915191]
[1763631551126,0.002,3015.4,3015.3,0.4572]
[1763631551932,0.002,3015.4,3014.8,0.53816232]
[1763631551933,0.002,3015.3,3014.8,1.41198527]
[1763631552239,0.0012,3015.3,3014.8,0.90699264]
[1763631552434,0.0012,3015.3,3014.8,1.37149264]
[1763631553511,0.0012,3015.3,3015.0,3.31674958]
[1763631555372,0.0012,3015.3,3015.2,0.4572]
[1763631555635,0.0012,3015.3,3015.2,3.77372958]
[1763631555833,0.0012,3015.3,3015.2,0.4572]
[1763631556647,0.0012,3015.3,3015.2,3.77372958]
[1763631558757,0.0012,3015.3,3015.2,5.17838751]
[1763631559751,0.0012,3015.3,3015.2,10.46789651]
[1763631559951,0.0012,3015.3,3015.2,10.43473122]
[1763631560117,0.0012,3015.3,3015.2,8.07942822]
[1763631560543,0.0012,3015.3,3015.2,7.43074322]
[1763631560843,0.0012,3015.3,3015.2,4.68072222]
[1763631561217,0.4692,3015.3,3015.2,0.90699264]
[1763631561464,0.4692,3015.3,3015.2,8.01232221]
[1763631562160,0.4692,3015.3,3015.2,4.69579263]
[1763631562462,0.9603,3015.3,3015.2,8.01232221]
[1763631562616,0.4692,3015.3,3015.2,8.01232221]
[1763631563017,0.4692,3015.3,3015.2,4.69579263]
[1763631563218,0.9603,3015.3,3015.2,4.69579263]
[1763631563431,0.9603,3015.3,3015.1,3.78879999]
[1763631563752,0.468,3015.2,3015.1,7.10543957]
[1763631563962,0.0012,3015.3,3015.1,7.10543957]
[1763631564261,0.0012,3015.3,3015.2,0.4572]
[1763631564759,0.0012,3015.3,3015.1,7.10543957]
[1763631564931,0.4692,3015.3,3015.1,7.10543957]
[1763631565131,0.0012,3015.3,3015.2,0.9217]
[1763631565623,0.0012,3015.3,3015.2,0.4572]
[1763631566332,0.0012,3015.3,3015.2,3.77372958]
[1763631567435,0.0012,3015.3,3015.2,7.56252957]
[1763631573971,0.9603,3015.3,3015.0,0.001]
[1763631574176,0.465,3015.1,3015.0,0.001]
[1763631574346,0.870504,3015.1,3015.0,0.001]
[1763631574551,1.341804,3015.1,3015.0,0.001]
[1763631575651,4.65844358,3015.1,3015.0,0.001]
[1763631576250,4.65764358,3015.1,3015.0,0.001]
[1763631578568,3.89283958,3015.1,3015.0,0.001]
[1763631578769,4.36293958,3015.1,3015.0,0.001]
[1763631582747,1.0463,3015.1,3015.0,0.001]
[1763631582943,0.0012,3015.3,3015.0,0.4873]
[1763631583859,0.4713,3015.3,3015.0,0.4873]
[1763631584065,0.0012,3015.3,3015.0,0.4873]
[1763631584381,0.0012,3015.3,3015.2,0.4863]
[1763631585960,0.4603,3015.3,3015.0,0.001]
[1763631587984,0.0012,3015.3,3015.0,0.001]
[1763631588154,0.0012,3015.3,3015.2,0.4863]
[1763631591689,0.4603,3015.3,3015.0,3.3176929]
[1763631591892,0.4603,3015.3,3015.0,0.001]
[1763631592085,0.9304,3015.3,3015.0,0.001]
[1763631592694,0.4603,3015.3,3015.0,0.001]
[1763631594162,0.4603,3015.3,3015.0,3.78979999]
[1763631595184,0.0012,3015.3,3015.2,0.4863]
[1763631596194,0.0012,3015.3,3015.2,8.05622957]
[1763631599211,4.7852,3015.3,3013.7,1.95434877]
[1763631599529,4.7852,3015.3,3012.7,5.90869754]
[1763631599530,9.95222928,3014.4,3012.7,0.4646]
[1763631599678,2.32400375,3014.3,3012.8,0.4646]
[1763631600009,1.28413955,3014.1,3012.8,5.22131603]
[1763631600177,1.28413955,3014.1,3012.8,0.4646]
[1763631600178,0.404704,3013.9,3012.8,0.4646]
[1763631600373,0.113,3013.8,3012.9,0.4646]
[1763631600784,1.62528187,3013.7,3012.9,0.4646]
[1763631601202,0.113,3013.8,3012.9,0.4646]
[1763631601609,3.3181803,3013.7,3012.9,0.4646]
[1763631601779,6.6363606,3013.7,3012.6,1.37159264]
[1763631602122,9.9545409,3013.7,3012.3,0.113]
[1763631602330,0.405504,3013.6,3012.3,0.113]
[1763631602505,1.31249664,3013.6,3012.3,0.113]
[1763631602674,1.31249664,3013.6,3012.2,0.4646]
[1763631602875,1.31249664,3013.6,3012.1,1.10469264]
[1763631603099,0.405504,3013.4,3011.6,0.1977]
[1763631603385,0.405504,3013.2,3011.6,0.1977]
[1763631603576,0.405504,3013.2,3011.6,0.6623]
[1763631603775,9.95652318,3013.1,3011.6,0.6623]
[1763631604112,9.95652318,3013.1,3011.7,0.4646]
[1763631604680,0.87863555,3014.1,3013.0,0.4863]
[1763631604883,3.4310409,3013.9,3013.0,0.684]
[1763631605182,3.4310409,3013.9,3012.9,0.001]
[1763631605183,0.113,3013.8,3012.9,0.001]
[1763631605584,3.3180409,3013.9,3013.0,0.4646]
[1763631605784,3.43107033,3013.8,3013.1,0.1977]
[1763631606195,3.31762988,3014.2,3013.2,0.4646]
[1763631606395,0.113,3014.1,3013.2,0.4646]
[1763631607719,0.113,3014.0,3013.3,0.0331862]
[1763631607941,0.113,3014.0,3013.3,3.3186183]
[1763631608120,0.113,3014.0,3013.4,0.4622]
[1763631608484,0.113,3014.1,3013.4,0.4622]
[1763631609591,0.113,3014.1,3013.2,3.31868218]
[1763631609792,3.31785003,3014.0,3013.2,3.31868218]
[1763631610027,0.405504,3013.9,3013.1,0.6599]
[1763631610195,0.405504,3013.9,3012.9,0.001]
[1763631610527,0.405504,3013.9,3012.9,0.90799264]
[1763631610823,0.405504,3013.9,3012.9,3.32003665]
[1763631611024,0.405504,3013.9,3012.9,0.001]
[1763631611025,0.03700562,3013.8,3012.9,0.001]
[1763631611204,0.113,3013.7,3012.9,0.001]
[1763631611392,0.15000562,3013.7,3012.9,0.001]
[1763631611932,6.63658082,3013.6,3012.9,0.001]
[1763631613003,0.113,3013.5,3012.9,0.4632]
[1763631614003,0.113,3013.5,3012.9,3.78219618]
[1763631614215,3.43142526,3013.5,3012.9,3.78223578]
[1763631614643,0.113,3013.5,3012.9,3.78223578]
[1763631614943,3.43143631,3013.5,3012.9,0.4632]
[1763631615148,0.113,3013.5,3012.9,3.78224874]
[1763631615346,3.43141745,3013.5,3012.9,0.4632]
[1763631615639,3.43141745,3013.5,3012.9,0.12103]
[1763631615836,6.7498349,3013.5,3012.6,3.31938737]
[1763631616047,6.7498349,3013.5,3012.7,4.22626273]
[1763631616048,3.43141745,3013.5,3012.7,4.22626273]
[1763631616229,6.7498349,3013.5,3012.5,0.001]
[1763631617045,6.7498349,3013.5,3012.7,0.90699264]
[1763631617239,7.0910349,3013.5,3012.5,3.32045432]
[1763631617643,7.0910349,3013.5,3012.6,0.90699264]
[1763631617842,7.0910349,3013.5,3012.7,3.79]
[1763631618372,3.43141745,3013.5,3012.8,0.4622]
[1763631619525,6.7498349,3013.5,3012.8,0.4622]
[1763631619717,3.43141745,3013.5,3012.8,0.4622]
[1763631620135,6.7498349,3013.5,3012.8,0.4622]
[1763631620825,0.113,3013.4,3012.8,3.78136361]
[1763631621021,0.113,3013.4,3012.8,0.4622]
[1763631621354,0.113,3013.4,3012.7,7.10926858]
[1763631621928,0.113,3013.4,3012.8,0.4632]
[1763631622134,3.43156867,3013.4,3012.8,0.4632]
[1763631622332,3.43156867,3013.4,3012.8,3.78236772]
[1763631623160,6.75013734,3013.4,3012.8,0.4632]
[1763631623362,6.75013734,3013.4,3012.8,0.001]
[1763631623662,3.77276867,3013.4,3012.8,0.001]
[1763631623856,3.77276867,3013.4,3012.8,3.791]
[1763631624160,3.77196867,3013.4,3012.8,3.791]
[1763631624743,0.1122,3013.4,3012.8,7.57237096]
[1763631625056,3.4307412,3013.4,3012.9,0.4622]
[1763631626258,0.2067,3013.0,3012.8,3.791]
[1763631626569,0.2067,3013.0,3012.8,0.001]
[1763631626570,0.0034,3012.9,3012.8,0.001]
[1763631627060,3.31896261,3013.0,3012.8,0.001]
[1763631627255,3.31877926,3013.2,3012.8,0.001]
[1763631627428,6.63755852,3013.2,3012.8,0.001]
[1763631628055,0.3412,3012.9,3012.8,0.001]
[1763631628356,3.66026136,3012.9,3012.8,0.001]
[1763631629162,4.57303865,3012.9,3012.8,0.001]
[1763631630169,5.07848087,3012.9,3012.5,0.001]
[1763631630499,6.60317,3012.6,3012.5,0.001]
[1763631630768,7.72888551,3012.6,3012.5,0.001]
[1763631630932,8.06868551,3012.6,3012.5,0.001]
[1763631631343,5.44580003,3012.6,3012.5,0.001]
[1763631631544,5.93897979,3012.6,3012.5,0.001]
[1763631631752,5.39711139,3012.6,3012.5,0.001]
[1763631632269,7.18574716,3012.6,3012.5,0.001]
[1763631632593,14.26410419,3012.6,3012.5,0.001]
[1763631633245,14.26410419,3012.6,3012.2,0.001]
[1763631633246,1.65709664,3012.5,3012.2,0.001]
[1763631633445,2.36893131,3012.3,3012.2,0.001]
[1763631633646,3.38164682,3012.3,3012.2,0.001]
[1763631633852,3.83584682,3012.3,3012.2,0.001]
[1763631634450,7.15556929,3012.3,3012.2,0.001]
[1763631635379,8.06256193,3012.3,3012.2,0.001]
[1763631635691,6.30253462,3012.3,3012.2,0.001]
[1763631636350,6.33954024,3012.3,3012.2,0.001]
[1763631637253,6.3376679,3012.3,3012.2,0.001]
[1763631638082,8.09288218,3012.3,3012.2,0.001]
[1763631638309,8.05587656,3012.3,3012.2,0.001]
[1763631638748,8.05527958,3012.3,3012.2,0.001]
[1763631639161,6.30066228,3012.3,3012.2,0.001]
[1763631639344,6.3376679,3012.3,3012.2,0.001]
[1763631640778,6.30066228,3012.3,3012.2,0.001]
[1763631640980,6.3376679,3012.3,3012.2,0.001]
[1763631641291,6.2246679,3012.3,3012.2,0.001]
[1763631641495,6.3376679,3012.3,3012.2,0.001]
[1763631642303,6.2246679,3012.3,3012.2,0.001]
[1763631642507,6.3376679,3012.3,3012.2,0.001]
[1763631643717,6.2246679,3012.3,3012.2,0.001]
[1763631643929,6.3376679,3012.3,3012.2,0.001]
[1763631644722,6.2246679,3012.3,3012.2,0.001]
[1763631645126,6.3376679,3012.3,3012.2,0.001]
[1763631646505,6.30066228,3012.3,3012.2,0.001]
[1763631647146,7.3562261,3012.3,3012.2,0.001]
[1763631647306,5.70252946,3012.3,3012.2,0.001]
[1763631647511,5.6546964,3012.3,3012.2,0.001]
[1763631647911,5.5416964,3012.3,3012.2,0.001]
[1763631648145,5.6538964,3012.3,3012.2,0.001]
[1763631648313,5.17239802,3012.3,3012.2,0.001]
[1763631648511,5.69090202,3012.3,3012.2,0.001]
[1763631648851,5.28539802,3012.3,3012.2,0.001]
[1763631649283,6.03130202,3012.3,3012.2,0.001]
[1763631649465,5.57790202,3012.3,3012.2,0.001]
[1763631649750,5.69090202,3012.3,3012.2,0.001]
[1763631649950,5.95841069,3012.3,3012.2,0.001]
[1763631650152,6.33581631,3012.3,3012.2,0.001]
[1763631650524,6.29881069,3012.3,3012.2,0.001]
[1763631650714,6.33581631,3012.3,3012.2,0.001]
[1763631651125,7.50540232,3012.3,3012.2,0.001]
[1763631651326,6.29881069,3012.3,3012.2,0.001]
[1763631651533,6.33581631,3012.3,3012.2,0.001]
[1763631652117,7.5057138,3012.3,3012.2,0.001]
[1763631652317,6.29881069,3012.3,3012.2,0.001]
[1763631652548,6.33581631,3012.3,3012.2,0.001]
[1763631653334,6.29881069,3012.3,3012.2,0.001]
[1763631654128,6.33581631,3012.3,3012.2,0.001]
[1763631654330,5.84541069,3012.3,3012.2,0.001]
[1763631654529,5.95841069,3012.3,3012.2,0.001]
[1763631654952,5.84541069,3012.3,3012.2,0.001]
[1763631655119,6.29881069,3012.3,3012.2,0.001]
[1763631656419,8.05160727,3012.3,3012.2,0.001]
[1763631657051,7.71120727,3012.3,3012.2,0.001]
[1763631657219,5.95841069,3012.3,3012.2,0.001]
[1763631657426,7.02710889,3012.3,3012.2,0.001]
[1763631657773,5.55630669,3012.3,3012.2,0.001]
[1763631657945,5.59331231,3012.3,3012.2,0.001]
[1763631658155,6.33781631,3012.3,3012.2,0.001]
[1763631658542,8.09061289,3012.3,3012.2,0.001]
[1763631658740,8.05360727,3012.3,3012.2,0.001]
[1763631659468,6.30081069,3012.3,3012.2,0.001]
[1763631659761,8.10262281,3012.3,3012.2,0.001]
[1763631659923,6.30081069,3012.3,3012.2,0.001]
[1763631660124,5.96381069,3012.3,3012.2,0.001]
[1763631661659,5.75781069,3012.3,3012.2,0.001]
[1763631661832,7.52516336,3012.3,3012.2,0.001]
[1763631662029,5.23930669,3012.3,3012.2,0.9587]
[1763631662235,6.53061973,3012.3,3012.2,0.9587]
[1763631662534,6.93612373,3012.3,3012.2,0.9587]
[1763631662736,5.75781069,3012.3,3012.2,0.9587]
[1763631662934,5.75781069,3012.3,3012.2,0.4974]
[1763631663462,7.14282373,3012.3,3012.2,0.001]
[1763631663650,6.93612373,3012.3,3012.2,0.001]
[1763631663854,5.75781069,3012.3,3012.2,0.4974]
[1763631664034,5.75781069,3012.3,3012.2,0.9587]
[1763631664035,5.21592464,3012.3,3012.2,0.9587]
[1763631664234,4.44531405,3012.3,3012.2,0.9587]
[1763631664785,0.002,3012.3,3012.2,0.9587]
[1763631671574,3.32161226,3012.4,3012.3,0.9278]
[1763631671575,3.19081014,3012.4,3012.3,0.9278]
[1763631672156,3.19001014,3012.4,3012.3,0.9278]
[1763631673100,3.30301014,3012.4,3012.3,0.9278]
[1763631673702,0.113,3012.4,3012.3,0.9278]
[1763631673860,0.002,3012.7,3012.3,0.9278]
[1763631674052,0.002,3012.7,3012.2,0.001]
[1763631674053,0.002,3012.7,3012.6,0.4721]
[1763631674382,0.520504,3012.7,3012.6,0.4721]
[1763631674579,0.520504,3012.7,3012.6,0.9278]
[1763631675983,3.8397857,3012.7,3012.6,0.9278]
[1763631676167,3.3212817,3012.7,3012.6,0.9278]
[1763631676372,3.4342817,3012.7,3012.6,0.9278]
[1763631676753,3.3212817,3012.7,3012.6,0.9278]
[1763631676955,0.114,3012.7,3012.6,0.9278]
[1763631677153,3.4332817,3012.7,3012.6,0.9278]
[1763631677383,0.002,3012.7,3012.6,0.9278]
[1763631677682,3.4332817,3012.7,3012.6,0.9278]
[1763631682716,3.3212817,3012.7,3012.6,0.9278]
[1763631683013,0.114,3012.7,3012.6,0.9278]
[1763631683304,3.4332817,3012.7,3012.6,0.9278]
[1763631683973,3.4332817,3012.7,3012.6,0.4721]
[1763631684606,3.4332817,3012.7,3012.6,0.9278]
[1763631685213,3.8387857,3012.7,3012.6,0.9278]
[1763631688117,0.002,3012.7,3012.6,0.9278]
[1763631688419,0.114,3012.7,3012.6,0.9278]
[1763631688901,3.4332817,3012.7,3012.6,0.9278]
[1763631689415,0.002,3012.7,3012.6,0.9278]
[1763631689615,3.4332817,3012.7,3012.6,0.9278]
[1763631690124,3.4332817,3012.7,3012.6,0.4721]
[1763631691619,3.4332817,3012.7,3012.6,0.9644]
[1763631694010,3.4332817,3012.7,3012.6,0.4721]
[1763631694192,3.4332817,3012.7,3012.6,0.9644]
[1763631695011,3.4332817,3012.7,3012.6,0.4721]
[1763631695012,3.8387857,3012.7,3012.6,0.4721]
[1763631695343,0.405504,3012.6,3012.3,0.4923]
[1763631695705,0.405504,3012.6,3012.5,0.4677]
[1763631696046,3.72489588,3012.6,3012.5,0.96]
[1763631696216,3.72409588,3012.6,3012.5,0.96]
[1763631700644,3.72409588,3012.6,3012.4,0.001]
[1763631700645,8.6434041,3012.6,3012.4,0.001]
[1763631700860,1.76168701,3012.5,3012.4,0.001]
[1763631701150,1.96838701,3012.5,3012.4,0.001]
[1763631701449,3.00831042,3012.5,3012.4,0.001]
[1763631702023,2.77991042,3012.5,3012.4,0.001]
[1763631702560,5.89271249,3012.5,3012.4,0.001]
[1763631702751,6.09941249,3012.5,3012.4,0.001]
[1763631705458,10.86716098,3012.5,3012.4,0.001]
[1763631706160,10.75516098,3012.5,3012.4,0.001]
[1763631706330,10.86716098,3012.5,3012.4,0.001]
[1763631707030,10.15880515,3012.5,3012.4,0.001]
[1763631707867,4.16536402,3012.5,3012.4,0.001]